[Event "Titled Tuesday Blitz September 27 Late 2022"]
[White "Harvey, Marcus R"]
[Black "Wadsworth, Matthew J"]
[WhiteFideId "400092"]
[BlackFideId "415804"]
[WhiteElo "2485"]
[BlackElo "2294"]
[Result "0-1"]
[Round "05"]
[TimeControl "180+1"]
[Date "2022.09.28"]
[WhiteClock "0:00:02"]
[BlackClock "0:00:26"]

1. d4 {[%clk 0:03:00]}  d5 {[%clk 0:02:57]} 2. Nf3 {[%clk 0:02:58]}  Nf6 {[%clk 0:02:55]} 3. Bf4 {[%clk 0:02:56]}  c5 {[%clk 0:02:54]} 4. c3 {[%clk 0:02:56]}  Qb6 {[%clk 0:02:53]} 5. Qb3 {[%clk 0:02:56]}  c4 {[%clk 0:02:52]} 6. Qxb6 {[%clk 0:02:53]}  axb6 {[%clk 0:02:52]} 7. Nbd2 {[%clk 0:02:51]}  b5 {[%clk 0:02:45]} 8. a3 {[%clk 0:02:51]}  Nc6 {[%clk 0:02:43]} 9. Rc1 {[%clk 0:02:47]}  Bf5 {[%clk 0:02:36]} 10. h3 {[%clk 0:02:45]}  h6 {[%clk 0:02:34]} 11. g4 {[%clk 0:02:44]}  Bh7 {[%clk 0:02:33]} 12. Bg2 {[%clk 0:02:41]}  e6 {[%clk 0:02:27]} 13. O-O {[%clk 0:02:23]}  Nd7 {[%clk 0:02:23]} 14. Rfe1 {[%clk 0:02:15]}  Nb6 {[%clk 0:02:07]} 15. e4 {[%clk 0:02:14]}  dxe4 {[%clk 0:02:07]} 16. Nxe4 {[%clk 0:02:14]}  Na4 {[%clk 0:02:07]} 17. Rc2 {[%clk 0:02:07]}  Be7 {[%clk 0:01:57]} 18. Rd2 {[%clk 0:02:04]}  O-O {[%clk 0:01:49]} 19. Nd6 {[%clk 0:01:46]}  Bxd6 {[%clk 0:01:45]} 20. Bxd6 {[%clk 0:01:47]}  Rfd8 {[%clk 0:01:45]} 21. Bf4 {[%clk 0:01:43]}  Na5 {[%clk 0:01:42]} 22. Bc7 {[%clk 0:01:28]}  Nb3 {[%clk 0:01:33]} 23. Bxd8 {[%clk 0:00:55]}  Nxd2 {[%clk 0:01:32]} 24. Nxd2 {[%clk 0:00:55]}  Rxd8 {[%clk 0:01:32]} 25. Bxb7 {[%clk 0:00:41]}  Nxb2 {[%clk 0:01:29]} 26. Bc6 {[%clk 0:00:41]}  Rb8 {[%clk 0:01:21]} 27. Re5 {[%clk 0:00:27]}  Nd1 {[%clk 0:00:51]} 28. Rxb5 {[%clk 0:00:26]}  Rc8 {[%clk 0:00:50]} 29. Bb7 {[%clk 0:00:12]}  Rc7 {[%clk 0:00:43]} 30. Bf3 {[%clk 0:00:08]}  Bc2 {[%clk 0:00:41]} 31. Bxd1 {[%clk 0:00:06]}  Bxd1 {[%clk 0:00:42]} 32. Rc5 {[%clk 0:00:05]}  Ra7 {[%clk 0:00:33]} 33. Nxc4 {[%clk 0:00:04]}  Be2 {[%clk 0:00:31]} 34. Kg2 {[%clk 0:00:02]}  Ra4 {[%clk 0:00:26]} 0-1


[Site "https://www.chess.com"]

[Event "Titled Tuesday Blitz September 27 Late 2022"]
[White "Janaszak, Dawid"]
[Black "Gines Esteo, Pedro Antonio"]
[WhiteFideId "1119206"]
[BlackFideId "32080190"]
[WhiteElo "2165"]
[BlackElo "2293"]
[Result "0-1"]
[Round "05"]
[TimeControl "180+1"]
[Date "2022.09.28"]
[WhiteClock "0:00:03"]
[BlackClock "0:00:09"]

1. d4 {[%clk 0:03:00]}  Nf6 {[%clk 0:02:51]} 2. Bf4 {[%clk 0:02:58]}  d6 {[%clk 0:02:48]} 3. Nf3 {[%clk 0:02:57]}  g6 {[%clk 0:02:47]} 4. c3 {[%clk 0:02:56]}  Bg7 {[%clk 0:02:47]} 5. Nbd2 {[%clk 0:02:54]}  O-O {[%clk 0:02:48]} 6. e4 {[%clk 0:02:53]}  Nbd7 {[%clk 0:02:45]} 7. h3 {[%clk 0:02:50]}  Nh5 {[%clk 0:02:44]} 8. Be3 {[%clk 0:02:48]}  e5 {[%clk 0:02:45]} 9. dxe5 {[%clk 0:02:48]}  dxe5 {[%clk 0:02:45]} 10. Bc4 {[%clk 0:02:40]}  Nf4 {[%clk 0:02:43]} 11. O-O {[%clk 0:02:39]}  Qf6 {[%clk 0:02:40]} 12. Re1 {[%clk 0:02:32]}  Re8 {[%clk 0:02:40]} 13. a4 {[%clk 0:02:31]}  a5 {[%clk 0:02:36]} 14. Bf1 {[%clk 0:02:30]}  Nf8 {[%clk 0:02:36]} 15. Qb3 {[%clk 0:02:16]}  b6 {[%clk 0:02:29]} 16. Qc2 {[%clk 0:01:51]}  g5 {[%clk 0:02:29]} 17. Nh2 {[%clk 0:01:46]}  h5 {[%clk 0:02:28]} 18. Bb5 {[%clk 0:01:39]}  c6 {[%clk 0:02:06]} 19. Bc4 {[%clk 0:01:37]}  N8g6 {[%clk 0:02:02]} 20. Ndf1 {[%clk 0:01:18]}  Nh4 {[%clk 0:01:56]} 21. Bxf4 {[%clk 0:01:18]}  gxf4 {[%clk 0:01:55]} 22. f3 {[%clk 0:01:03]}  Bf8 {[%clk 0:01:47]} 23. Kh1 {[%clk 0:01:02]}  Kh8 {[%clk 0:01:45]} 24. Rad1 {[%clk 0:01:00]}  Bc5 {[%clk 0:01:44]} 25. Re2 {[%clk 0:00:48]}  Rg8 {[%clk 0:01:40]} 26. b4 {[%clk 0:00:47]}  axb4 {[%clk 0:01:37]} 27. cxb4 {[%clk 0:00:48]}  Bxb4 {[%clk 0:01:37]} 28. Qb3 {[%clk 0:00:45]}  Bc5 {[%clk 0:01:34]} 29. Bxf7 {[%clk 0:00:44]}  Rxg2 {[%clk 0:01:23]} 30. Rxg2 {[%clk 0:00:42]}  Nxg2 {[%clk 0:01:24]} 31. Kxg2 {[%clk 0:00:37]}  Qg5+ {[%clk 0:01:23]} 32. Ng4 {[%clk 0:00:37]}  hxg4 {[%clk 0:01:23]} 33. hxg4 {[%clk 0:00:34]}  Bxg4 {[%clk 0:01:21]} 34. fxg4 {[%clk 0:00:19]}  Qxg4+ {[%clk 0:01:22]} 35. Ng3 {[%clk 0:00:19]}  fxg3 {[%clk 0:01:01]} 36. Qe6 {[%clk 0:00:10]}  Qxe6 {[%clk 0:00:40]} 37. Bxe6 {[%clk 0:00:10]}  Rxa4 {[%clk 0:00:41]} 38. Bf5 {[%clk 0:00:05]}  Ra3 {[%clk 0:00:40]} 39. Rd7 {[%clk 0:00:05]}  Bd4 {[%clk 0:00:36]} 40. Rc7 {[%clk 0:00:04]}  c5 {[%clk 0:00:36]} 41. Kh3 {[%clk 0:00:04]}  b5 {[%clk 0:00:27]} 42. Rb7 {[%clk 0:00:03]}  b4 {[%clk 0:00:27]} 43. Be6 {[%clk 0:00:04]}  Re3 {[%clk 0:00:23]} 44. Bd5 {[%clk 0:00:04]}  Rf3 {[%clk 0:00:21]} 45. Kg2 {[%clk 0:00:04]}  Rc3 {[%clk 0:00:19]} 46. Kh3 {[%clk 0:00:04]}  Bf2 {[%clk 0:00:13]} 47. Kg2 {[%clk 0:00:04]}  Rc1 {[%clk 0:00:13]} 48. Kh3 {[%clk 0:00:04]}  Rh1+ {[%clk 0:00:13]} 49. Kg2 {[%clk 0:00:04]}  Rh2+ {[%clk 0:00:12]} 50. Kf3 {[%clk 0:00:05]}  Be1 {[%clk 0:00:07]} 51. Rb8+ {[%clk 0:00:05]}  Kg7 {[%clk 0:00:08]} 52. Rg8+ {[%clk 0:00:05]}  Kf6 {[%clk 0:00:08]} 53. Rf8+ {[%clk 0:00:05]}  Ke7 {[%clk 0:00:08]} 54. Rf7+ {[%clk 0:00:06]}  Kd6 {[%clk 0:00:08]} 55. Rg7 {[%clk 0:00:07]}  Rf2+ {[%clk 0:00:08]} 56. Ke3 {[%clk 0:00:06]}  Rf6 {[%clk 0:00:08]} 57. Ke2 {[%clk 0:00:05]}  Bf2 {[%clk 0:00:08]} 58. Rg8 {[%clk 0:00:04]}  c4 {[%clk 0:00:08]} 59. Rc8 {[%clk 0:00:04]}  c3 {[%clk 0:00:08]} 60. Rc4 {[%clk 0:00:03]}  Be3 {[%clk 0:00:07]} 61. Rc6+ {[%clk 0:00:02]}  Ke7 {[%clk 0:00:07]} 62. Rc7+ {[%clk 0:00:02]}  Kd8 {[%clk 0:00:07]} 63. Rg7 {[%clk 0:00:02]}  Bf4 {[%clk 0:00:07]} 64. Kd3 {[%clk 0:00:02]}  Rb6 {[%clk 0:00:07]} 65. Bb3 {[%clk 0:00:02]}  Rc6 {[%clk 0:00:07]} 66. Kc2 {[%clk 0:00:02]}  Rd6 {[%clk 0:00:07]} 67. Bd5 {[%clk 0:00:02]}  Rd7 {[%clk 0:00:06]} 68. Rg8+ {[%clk 0:00:02]}  Kc7 {[%clk 0:00:06]} 69. Rg6 {[%clk 0:00:03]}  Rd6 {[%clk 0:00:06]} 70. Rg7+ {[%clk 0:00:03]}  Kb6 {[%clk 0:00:07]} 71. Rg8 {[%clk 0:00:03]}  Kc5 {[%clk 0:00:07]} 72. Rc8+ {[%clk 0:00:03]}  Kd4 {[%clk 0:00:08]} 73. Rg8 {[%clk 0:00:04]}  Ke3 {[%clk 0:00:08]} 74. Kb3 {[%clk 0:00:04]}  Kf2 {[%clk 0:00:09]} 75. Rc8 {[%clk 0:00:03]}  g2 {[%clk 0:00:09]} 0-1


[Site "https://www.chess.com"]

[Event "Titled Tuesday Blitz September 27 Late 2022"]
[White "Jobava, Baadur"]
[Black "Carlsen, Magnus"]
[WhiteFideId "13601520"]
[BlackFideId "1503014"]
[WhiteElo "2582"]
[BlackElo "2830"]
[Result "1/2-1/2"]
[Round "05"]
[TimeControl "180+1"]
[Date "2022.09.27"]
[WhiteClock "0:00:16"]
[BlackClock "0:00:06"]

1. e4 {[%clk 0:03:00]}  c5 {[%clk 0:02:57]} 2. c3 {[%clk 0:03:00]}  d5 {[%clk 0:02:56]} 3. exd5 {[%clk 0:03:01]}  Nf6 {[%clk 0:02:56]} 4. d4 {[%clk 0:03:01]}  cxd4 {[%clk 0:02:56]} 5. Nf3 {[%clk 0:03:02]}  Nxd5 {[%clk 0:02:55]} 6. cxd4 {[%clk 0:03:01]}  Nc6 {[%clk 0:02:53]} 7. Nc3 {[%clk 0:03:00]}  a6 {[%clk 0:02:39]} 8. h3 {[%clk 0:02:42]}  g6 {[%clk 0:02:38]} 9. Bc4 {[%clk 0:02:38]}  Be6 {[%clk 0:02:34]} 10. Bb3 {[%clk 0:02:35]}  Bg7 {[%clk 0:02:34]} 11. O-O {[%clk 0:02:36]}  O-O {[%clk 0:02:33]} 12. Re1 {[%clk 0:02:36]}  Nxc3 {[%clk 0:02:25]} 13. bxc3 {[%clk 0:02:37]}  Bd5 {[%clk 0:02:25]} 14. Bg5 {[%clk 0:02:13]}  Re8 {[%clk 0:02:21]} 15. Qd2 {[%clk 0:02:05]}  Bxf3 {[%clk 0:02:13]} 16. gxf3 {[%clk 0:02:05]}  Qd7 {[%clk 0:02:13]} 17. Kg2 {[%clk 0:02:05]}  Rac8 {[%clk 0:02:12]} 18. Re4 {[%clk 0:01:52]}  e6 {[%clk 0:02:09]} 19. Rae1 {[%clk 0:01:48]}  Ne7 {[%clk 0:02:07]} 20. Rxe6 {[%clk 0:01:45]}  Nf5 {[%clk 0:02:01]} 21. Rxe8+ {[%clk 0:01:45]}  Rxe8 {[%clk 0:02:02]} 22. Rxe8+ {[%clk 0:01:41]}  Qxe8 {[%clk 0:02:03]} 23. Bc2 {[%clk 0:01:35]}  Qd7 {[%clk 0:01:48]} 24. Bxf5 {[%clk 0:01:24]}  Qxf5 {[%clk 0:01:47]} 25. Qe3 {[%clk 0:01:20]}  Qe6 {[%clk 0:01:32]} 26. c4 {[%clk 0:01:08]}  h6 {[%clk 0:01:23]} 27. Qxe6 {[%clk 0:01:02]}  fxe6 {[%clk 0:01:24]} 28. Be3 {[%clk 0:01:02]}  b5 {[%clk 0:01:20]} 29. cxb5 {[%clk 0:00:38]}  axb5 {[%clk 0:01:21]} 30. Kf1 {[%clk 0:00:37]}  Kf7 {[%clk 0:01:21]} 31. Ke2 {[%clk 0:00:38]}  Ke7 {[%clk 0:01:21]} 32. Kd3 {[%clk 0:00:39]}  Kd6 {[%clk 0:01:21]} 33. Ke4 {[%clk 0:00:39]}  Kc6 {[%clk 0:01:18]} 34. Bd2 {[%clk 0:00:37]}  h5 {[%clk 0:01:16]} 35. Bb4 {[%clk 0:00:36]}  Bf6 {[%clk 0:01:15]} 36. Bf8 {[%clk 0:00:36]}  Bh8 {[%clk 0:01:09]} 37. Be7 {[%clk 0:00:33]}  Bg7 {[%clk 0:01:09]} 38. Bg5 {[%clk 0:00:33]}  Kd6 {[%clk 0:01:07]} 39. Bf4+ {[%clk 0:00:33]}  Kc6 {[%clk 0:01:07]} 40. Be5 {[%clk 0:00:34]}  Bf8 {[%clk 0:01:07]} 41. Bf6 {[%clk 0:00:32]}  Bd6 {[%clk 0:01:07]} 42. Bg5 {[%clk 0:00:32]}  Bc7 {[%clk 0:01:03]} 43. Be3 {[%clk 0:00:32]}  Bd6 {[%clk 0:01:02]} 44. Bf4 {[%clk 0:00:32]}  Bf8 {[%clk 0:01:02]} 45. Bg3 {[%clk 0:00:29]}  Bg7 {[%clk 0:01:00]} 46. Bh4 {[%clk 0:00:29]}  Kd6 {[%clk 0:00:54]} 47. Bg5 {[%clk 0:00:28]}  Kc6 {[%clk 0:00:54]} 48. Be7 {[%clk 0:00:27]}  Kd7 {[%clk 0:00:51]} 49. Bg5 {[%clk 0:00:25]}  Kc6 {[%clk 0:00:51]} 50. Be3 {[%clk 0:00:25]}  Kd6 {[%clk 0:00:48]} 51. Bd2 {[%clk 0:00:25]}  Kc6 {[%clk 0:00:47]} 52. Bc1 {[%clk 0:00:25]}  Kd6 {[%clk 0:00:45]} 53. Be3 {[%clk 0:00:26]}  Kc6 {[%clk 0:00:45]} 54. Bg5 {[%clk 0:00:25]}  Kd6 {[%clk 0:00:45]} 55. Bd8 {[%clk 0:00:24]}  Kc6 {[%clk 0:00:44]} 56. Kf4 {[%clk 0:00:21]}  Kd7 {[%clk 0:00:39]} 57. Bh4 {[%clk 0:00:20]}  Ke8 {[%clk 0:00:36]} 58. Ke4 {[%clk 0:00:20]}  Kd7 {[%clk 0:00:36]} 59. d5 {[%clk 0:00:21]}  Bc3 {[%clk 0:00:32]} 60. Bg3 {[%clk 0:00:20]}  Bf6 {[%clk 0:00:31]} 61. Bf4 {[%clk 0:00:19]}  Bh4 {[%clk 0:00:28]} 62. Be3 {[%clk 0:00:19]}  Kd6 {[%clk 0:00:25]} 63. Bf4+ {[%clk 0:00:19]}  Kd7 {[%clk 0:00:25]} 64. Ke5 {[%clk 0:00:18]}  exd5 {[%clk 0:00:24]} 65. Kxd5 {[%clk 0:00:19]}  Bxf2 {[%clk 0:00:24]} 66. Be5 {[%clk 0:00:19]}  Ba7 {[%clk 0:00:18]} 67. Bc3 {[%clk 0:00:19]}  Bb6 {[%clk 0:00:13]} 68. Ke5 {[%clk 0:00:19]}  Bd8 {[%clk 0:00:11]} 69. Kd5 {[%clk 0:00:19]}  Be7 {[%clk 0:00:11]} 70. Bd4 {[%clk 0:00:18]}  Bd6 {[%clk 0:00:10]} 71. Be3 {[%clk 0:00:17]}  Bf8 {[%clk 0:00:07]} 72. Bg5 {[%clk 0:00:16]}  Bd6 {[%clk 0:00:07]} 73. Bd2 {[%clk 0:00:15]}  Bf8 {[%clk 0:00:07]} 74. Be3 {[%clk 0:00:16]}  Bd6 {[%clk 0:00:07]} 75. Bc5 {[%clk 0:00:16]}  Bg3 {[%clk 0:00:07]} 76. Bb4 {[%clk 0:00:15]}  Bf2 {[%clk 0:00:06]} 77. Ke5 {[%clk 0:00:15]}  Bh4 {[%clk 0:00:04]} 78. Bc5 {[%clk 0:00:14]}  Bd8 {[%clk 0:00:04]} 79. Be3 {[%clk 0:00:14]}  Be7 {[%clk 0:00:04]} 80. Kd5 {[%clk 0:00:14]}  Bd6 {[%clk 0:00:04]} 81. Bc5 {[%clk 0:00:14]}  Bf4 {[%clk 0:00:05]} 82. Bd4 {[%clk 0:00:14]}  Bd6 {[%clk 0:00:05]} 83. Be5 {[%clk 0:00:15]}  Be7 {[%clk 0:00:06]} 84. Bc3 {[%clk 0:00:15]}  Bd6 {[%clk 0:00:06]} 85. Bd2 {[%clk 0:00:15]}  Bf8 {[%clk 0:00:05]} 86. Ke5 {[%clk 0:00:16]}  Bg7+ {[%clk 0:00:05]} 87. Kd5 {[%clk 0:00:16]}  Bf8 {[%clk 0:00:06]} 1/2-1/2


[Site "https://www.chess.com"]

[Event "Titled Tuesday Blitz September 27 Late 2022"]
[White "Kamsky, Gata"]
[Black "Boros, Denes"]
[WhiteFideId "2000024"]
[BlackFideId "722340"]
[WhiteElo "2666"]
[BlackElo "2464"]
[Result "1/2-1/2"]
[Round "05"]
[TimeControl "180+1"]
[Date "2022.09.27"]
[WhiteClock "0:00:55"]
[BlackClock "0:00:32"]

1. d4 {[%clk 0:03:00]}  g6 {[%clk 0:02:50]} 2. c3 {[%clk 0:02:59]}  c6 {[%clk 0:02:48]} 3. e4 {[%clk 0:02:57]}  Nf6 {[%clk 0:02:46]} 4. e5 {[%clk 0:02:51]}  Nh5 {[%clk 0:02:37]} 5. Be2 {[%clk 0:02:47]}  Ng7 {[%clk 0:02:36]} 6. f4 {[%clk 0:02:46]}  d5 {[%clk 0:02:34]} 7. Be3 {[%clk 0:02:40]}  h5 {[%clk 0:02:30]} 8. Nf3 {[%clk 0:02:39]}  Bg4 {[%clk 0:02:29]} 9. Nbd2 {[%clk 0:02:38]}  Nd7 {[%clk 0:02:25]} 10. O-O {[%clk 0:02:35]}  Nf5 {[%clk 0:02:22]} 11. Bf2 {[%clk 0:02:34]}  e6 {[%clk 0:02:23]} 12. b4 {[%clk 0:02:31]}  Bh6 {[%clk 0:02:18]} 13. g3 {[%clk 0:02:27]}  h4 {[%clk 0:02:02]} 14. Nxh4 {[%clk 0:01:45]}  Bxe2 {[%clk 0:01:48]} 15. Qxe2 {[%clk 0:01:44]}  Nxh4 {[%clk 0:01:46]} 16. gxh4 {[%clk 0:01:44]}  Bxf4 {[%clk 0:01:42]} 17. Nf3 {[%clk 0:01:41]}  Qe7 {[%clk 0:01:16]} 18. Bg3 {[%clk 0:01:39]}  Bh6 {[%clk 0:01:11]} 19. a4 {[%clk 0:01:26]}  g5 {[%clk 0:01:06]} 20. hxg5 {[%clk 0:01:24]}  Bxg5 {[%clk 0:01:07]} 21. Nxg5 {[%clk 0:01:21]}  Qxg5 {[%clk 0:01:08]} 22. Rf4 {[%clk 0:01:08]}  Rh7 {[%clk 0:00:44]} 23. Raf1 {[%clk 0:01:03]}  O-O-O {[%clk 0:00:35]} 24. Rxf7 {[%clk 0:01:00]}  Rxf7 {[%clk 0:00:35]} 25. Rxf7 {[%clk 0:01:00]}  Rg8 {[%clk 0:00:35]} 26. Kg2 {[%clk 0:00:55]}  Nb6 {[%clk 0:00:32]} 1/2-1/2


[Site "https://www.chess.com"]

[Event "Titled Tuesday Blitz September 27 Late 2022"]
[White "Kravtsiv, Martyn"]
[Black "Averjanov, Alexey"]
[WhiteFideId "14113147"]
[BlackFideId "14109867"]
[WhiteElo "2694"]
[BlackElo "2658"]
[Result "1-0"]
[Round "05"]
[TimeControl "180+1"]
[Date "2022.09.27"]
[WhiteClock "0:01:38"]
[BlackClock "0:01:33"]

1. e4 {[%clk 0:03:00]}  c6 {[%clk 0:02:58]} 2. Nf3 {[%clk 0:03:00]}  d5 {[%clk 0:02:58]} 3. d3 {[%clk 0:03:01]}  Qc7 {[%clk 0:02:58]} 4. Nc3 {[%clk 0:02:59]}  dxe4 {[%clk 0:02:56]} 5. Nxe4 {[%clk 0:03:00]}  Bg4 {[%clk 0:02:56]} 6. h3 {[%clk 0:02:59]}  Bh5 {[%clk 0:02:56]} 7. Qe2 {[%clk 0:02:55]}  Nd7 {[%clk 0:02:54]} 8. g4 {[%clk 0:02:53]}  Bg6 {[%clk 0:02:54]} 9. Bg2 {[%clk 0:02:54]}  Ngf6 {[%clk 0:02:51]} 10. Nxf6+ {[%clk 0:02:47]}  Nxf6 {[%clk 0:02:51]} 11. Ne5 {[%clk 0:02:47]}  e6 {[%clk 0:02:49]} 12. Bd2 {[%clk 0:02:41]}  Bd6 {[%clk 0:02:47]} 13. f4 {[%clk 0:02:31]}  Bxe5 {[%clk 0:02:42]} 14. fxe5 {[%clk 0:02:30]}  Nd7 {[%clk 0:02:39]} 15. Bc3 {[%clk 0:02:20]}  O-O-O {[%clk 0:02:36]} 16. O-O-O {[%clk 0:02:19]}  Nb6 {[%clk 0:02:35]} 17. Bb4 {[%clk 0:02:17]}  Nd5 {[%clk 0:02:31]} 18. Bd6 {[%clk 0:02:17]}  Qa5 {[%clk 0:02:29]} 19. Kb1 {[%clk 0:02:13]}  Nf4 {[%clk 0:02:27]} 20. Qf2 {[%clk 0:02:13]}  Nxg2 {[%clk 0:02:27]} 21. Qxg2 {[%clk 0:02:14]}  h5 {[%clk 0:02:24]} 22. g5 {[%clk 0:02:03]}  Qd5 {[%clk 0:02:21]} 23. Qf2 {[%clk 0:02:02]}  b6 {[%clk 0:02:20]} 24. h4 {[%clk 0:01:59]}  Bf5 {[%clk 0:02:19]} 25. Rhe1 {[%clk 0:01:58]}  Kb7 {[%clk 0:02:17]} 26. Ka1 {[%clk 0:01:53]}  g6 {[%clk 0:02:12]} 27. c4 {[%clk 0:01:52]}  Qa5 {[%clk 0:02:11]} 28. d4 {[%clk 0:01:48]}  Rd7 {[%clk 0:02:08]} 29. Re3 {[%clk 0:01:47]}  b5 {[%clk 0:01:56]} 30. Ra3 {[%clk 0:01:43]}  Qd8 {[%clk 0:01:53]} 31. d5 {[%clk 0:01:43]}  a6 {[%clk 0:01:34]} 32. dxc6+ {[%clk 0:01:41]}  Kxc6 {[%clk 0:01:34]} 33. Rxa6+ {[%clk 0:01:40]}  Kb7 {[%clk 0:01:33]} 34. Qa7+ {[%clk 0:01:38]}  Kc8 {[%clk 0:01:33]} 35. Qb8# {[%clk 0:01:38]} 1-0


[Site "https://www.chess.com"]

[Event "Titled Tuesday Blitz September 27 Late 2022"]
[White "Lewtak, Damian"]
[Black "Melikhov, Evgeny V."]
[WhiteFideId "1141724"]
[BlackFideId "4122046"]
[WhiteElo "2329"]
[BlackElo "1963"]
[Result "1-0"]
[Round "05"]
[TimeControl "180+1"]
[Date "2022.09.28"]
[WhiteClock "0:00:02"]
[BlackClock "0:00:07"]

1. e4 {[%clk 0:03:00]}  e5 {[%clk 0:02:55]} 2. Nf3 {[%clk 0:03:00]}  Nc6 {[%clk 0:02:55]} 3. Bb5 {[%clk 0:03:00]}  a6 {[%clk 0:02:54]} 4. Bxc6 {[%clk 0:03:00]}  dxc6 {[%clk 0:02:54]} 5. O-O {[%clk 0:03:00]}  f6 {[%clk 0:02:54]} 6. d4 {[%clk 0:03:00]}  exd4 {[%clk 0:02:54]} 7. Nxd4 {[%clk 0:03:01]}  c5 {[%clk 0:02:54]} 8. Nb3 {[%clk 0:03:01]}  Qxd1 {[%clk 0:02:53]} 9. Rxd1 {[%clk 0:03:02]}  Bd7 {[%clk 0:02:51]} 10. Nc3 {[%clk 0:02:52]}  O-O-O {[%clk 0:02:49]} 11. Bf4 {[%clk 0:02:51]}  Be6 {[%clk 0:02:30]} 12. Na5 {[%clk 0:02:12]}  Bd6 {[%clk 0:02:14]} 13. Bxd6 {[%clk 0:02:08]}  Rxd6 {[%clk 0:02:10]} 14. Rxd6 {[%clk 0:02:06]}  cxd6 {[%clk 0:02:09]} 15. b3 {[%clk 0:01:52]}  Ne7 {[%clk 0:02:06]} 16. Rd1 {[%clk 0:01:46]}  Rd8 {[%clk 0:02:04]} 17. Nc4 {[%clk 0:01:35]}  Kc7 {[%clk 0:01:59]} 18. Ne3 {[%clk 0:01:29]}  b5 {[%clk 0:01:35]} 19. f4 {[%clk 0:01:22]}  b4 {[%clk 0:01:34]} 20. Ncd5+ {[%clk 0:01:22]}  Bxd5 {[%clk 0:01:34]} 21. exd5 {[%clk 0:01:21]}  a5 {[%clk 0:01:24]} 22. a4 {[%clk 0:01:11]}  bxa3 {[%clk 0:01:07]} 23. Ra1 {[%clk 0:01:11]}  Rb8 {[%clk 0:01:07]} 24. Rxa3 {[%clk 0:01:10]}  Rb4 {[%clk 0:01:06]} 25. Rxa5 {[%clk 0:00:54]}  Rxf4 {[%clk 0:00:56]} 26. Ra7+ {[%clk 0:00:47]}  Kd8 {[%clk 0:00:56]} 27. c4 {[%clk 0:00:41]}  h5 {[%clk 0:00:27]} 28. Ra6 {[%clk 0:00:34]}  Kd7 {[%clk 0:00:26]} 29. Ra7+ {[%clk 0:00:34]}  Kd8 {[%clk 0:00:26]} 30. h3 {[%clk 0:00:32]}  h4 {[%clk 0:00:25]} 31. Rb7 {[%clk 0:00:23]}  g5 {[%clk 0:00:23]} 32. Ng4 {[%clk 0:00:12]}  Nc8 {[%clk 0:00:18]} 33. Nh6 {[%clk 0:00:08]}  Rd4 {[%clk 0:00:14]} 34. Nf7+ {[%clk 0:00:04]}  Ke8 {[%clk 0:00:14]} 35. Rc7 {[%clk 0:00:03]}  Ne7 {[%clk 0:00:13]} 36. Nxd6+ {[%clk 0:00:03]}  Kd8 {[%clk 0:00:13]} 37. Ra7 {[%clk 0:00:02]}  Rd2 {[%clk 0:00:11]} 38. Nb7+ {[%clk 0:00:02]}  Kc8 {[%clk 0:00:10]} 39. Nxc5 {[%clk 0:00:03]}  Nf5 {[%clk 0:00:10]} 40. Ne6 {[%clk 0:00:03]}  Ne3 {[%clk 0:00:10]} 41. c5 {[%clk 0:00:02]}  Rxd5 {[%clk 0:00:09]} 42. c6 {[%clk 0:00:02]}  Rd2 {[%clk 0:00:07]} 43. Ra8# {[%clk 0:00:02]} 1-0


[Site "https://www.chess.com"]

[Event "Titled Tuesday Blitz September 27 Late 2022"]
[White "Maze, Sebastien"]
[Black "Toniutti, Ezio"]
[WhiteFideId "613762"]
[BlackFideId "113034"]
[WhiteElo "2430"]
[BlackElo "2215"]
[Result "0-1"]
[Round "05"]
[TimeControl "180+1"]
[Date "2022.09.28"]
[WhiteClock "0:00:05"]
[BlackClock "0:00:15"]

1. e4 {[%clk 0:03:00]}  e5 {[%clk 0:02:58]} 2. Nf3 {[%clk 0:02:56]}  Nc6 {[%clk 0:02:58]} 3. Bb5 {[%clk 0:02:55]}  a6 {[%clk 0:02:57]} 4. Bxc6 {[%clk 0:02:53]}  dxc6 {[%clk 0:02:55]} 5. O-O {[%clk 0:02:53]}  Bg4 {[%clk 0:02:53]} 6. h3 {[%clk 0:02:51]}  h5 {[%clk 0:02:50]} 7. d3 {[%clk 0:02:51]}  Qf6 {[%clk 0:02:50]} 8. Be3 {[%clk 0:02:48]}  Bxf3 {[%clk 0:02:50]} 9. Qxf3 {[%clk 0:02:47]}  Qxf3 {[%clk 0:02:50]} 10. gxf3 {[%clk 0:02:48]}  Bd6 {[%clk 0:02:50]} 11. Nd2 {[%clk 0:02:48]}  Ne7 {[%clk 0:02:50]} 12. Rfb1 {[%clk 0:02:48]}  f5 {[%clk 0:02:47]} 13. Bg5 {[%clk 0:02:35]}  Rf8 {[%clk 0:02:44]} 14. Bxe7 {[%clk 0:02:33]}  Kxe7 {[%clk 0:02:45]} 15. Kg2 {[%clk 0:02:19]}  Rf6 {[%clk 0:02:43]} 16. Re1 {[%clk 0:02:16]}  Kd7 {[%clk 0:02:38]} 17. Nc4 {[%clk 0:02:06]}  Raf8 {[%clk 0:02:33]} 18. Re2 {[%clk 0:02:03]}  b5 {[%clk 0:02:32]} 19. Ne3 {[%clk 0:01:58]}  f4 {[%clk 0:02:20]} 20. Nf1 {[%clk 0:01:52]}  g5 {[%clk 0:02:20]} 21. a4 {[%clk 0:01:44]}  Rg8 {[%clk 0:02:10]} 22. axb5 {[%clk 0:01:37]}  axb5 {[%clk 0:02:11]} 23. Nh2 {[%clk 0:01:35]}  Bc5 {[%clk 0:02:03]} 24. Rd2 {[%clk 0:01:28]}  Bb6 {[%clk 0:01:55]} 25. c3 {[%clk 0:01:27]}  c5 {[%clk 0:01:53]} 26. Ra6 {[%clk 0:01:17]}  Kc6 {[%clk 0:01:47]} 27. Kf1 {[%clk 0:01:14]}  Kb7 {[%clk 0:01:46]} 28. Ra2 {[%clk 0:01:13]}  Rff8 {[%clk 0:01:46]} 29. Rd1 {[%clk 0:01:09]}  Rd8 {[%clk 0:01:41]} 30. Ke2 {[%clk 0:01:07]}  Kc6 {[%clk 0:01:38]} 31. Rda1 {[%clk 0:01:06]}  Kb7 {[%clk 0:01:30]} 32. Rg1 {[%clk 0:00:59]}  Rd7 {[%clk 0:01:29]} 33. Raa1 {[%clk 0:00:54]}  Rdg7 {[%clk 0:01:20]} 34. Rg2 {[%clk 0:00:49]}  Kc6 {[%clk 0:01:19]} 35. Rag1 {[%clk 0:00:47]}  c4 {[%clk 0:01:04]} 36. dxc4 {[%clk 0:00:37]}  bxc4 {[%clk 0:01:04]} 37. h4 {[%clk 0:00:37]}  g4 {[%clk 0:01:03]} 38. fxg4 {[%clk 0:00:34]}  Kb5 {[%clk 0:00:50]} 39. g5 {[%clk 0:00:26]}  Rg6 {[%clk 0:00:46]} 40. Nf3 {[%clk 0:00:26]}  Re8 {[%clk 0:00:46]} 41. Rd1 {[%clk 0:00:25]}  Ka4 {[%clk 0:00:46]} 42. Rd2 {[%clk 0:00:19]}  Rd6 {[%clk 0:00:32]} 43. Rxd6 {[%clk 0:00:17]}  cxd6 {[%clk 0:00:33]} 44. g6 {[%clk 0:00:17]}  Rg8 {[%clk 0:00:33]} 45. g7 {[%clk 0:00:17]}  Kb3 {[%clk 0:00:32]} 46. Rg6 {[%clk 0:00:16]}  Kxb2 {[%clk 0:00:31]} 47. Rxd6 {[%clk 0:00:16]}  Ba5 {[%clk 0:00:29]} 48. Rd7 {[%clk 0:00:14]}  Bxc3 {[%clk 0:00:28]} 49. Ng5 {[%clk 0:00:14]}  Bb4 {[%clk 0:00:20]} 50. Rb7 {[%clk 0:00:12]}  Kb3 {[%clk 0:00:18]} 51. Nh7 {[%clk 0:00:11]}  c3 {[%clk 0:00:18]} 52. Rc7 {[%clk 0:00:11]}  c2 {[%clk 0:00:15]} 53. Kd3 {[%clk 0:00:06]}  Rxg7 {[%clk 0:00:15]} 54. Rxc2 {[%clk 0:00:05]}  Rd7+ {[%clk 0:00:15]} 0-1


[Site "https://www.chess.com"]